Cogmind - Beta 12 @@@ ROGUE MODE // 2023.03.04 @ 23:58:18 Player: Ape Result: Destroyed by G-73 Enforcer with Heavy Laser Performance ------------- Evolutions (8) 4000 Regions Visited (20) 4000 Robots Destroyed (247) 1235 Value Destroyed (11965) 11965 Prototype IDs (48) 960 Alien Tech Used (0) 0 Bonus (4352) 4352 TOTAL SCORE: 26512 Bonus ------- High Alert Combat Kills 1706 Follower Combat Kills 731 Entered Garrisons 600 Used RIF Installer 1000 Aligned with FarCom 300 Met Data Miner 300 Friendly Fire -285 Cogmind --------- Core Integrity 0/1450 Matter 295/300 Energy 79/100 System Corruption 16% Temperature Cool (27) Movement Core (50) Location -2/Research Parts ------- > --- POWER (2) -------- (None) > --- PROPULSION (4) --- (None) > --- UTILITY (13) ----- Advanced Signal Interpreter Advanced Targeting Computer Hacking Suite Relay Coupler [NC] (14) Relay Coupler [NC] (21) Relay Coupler [Brawler] (24) > --- WEAPON (4) ------- (None) > --- INVENTORY (5) ---- Combat Antigrav System Combat Antigrav System Heavy Gauss Cannon Advanced Remote Datajack Force Lance Peak State ------------ > --- POWER ------------ Micro Fission Core Particle Reactor > --- PROPULSION ------- Improved Heavy Siege Treads Improved Heavy Siege Treads > --- UTILITY ---------- Advanced Cryofiber Web Advanced Cooling System Advanced Cooling System High-capacity Storage Unit Energy Well Advanced Signal Interpreter Improved Targeting Computer Advanced Targeting Computer Layered Light Armor Plating Relay Coupler [NC] Long-range Tractor Beam Advanced Drone Bay > --- WEAPON ----------- Enhanced Quantum Rifle Nova Cannon YOLO Cannon > --- INVENTORY -------- Light Neutrino Core Improved Heavy Siege Treads Improved Heavy Siege Treads Improved Heavy Siege Treads Diametric Drive Advanced Cryofiber Web High-capacity Matter Pod Relay Coupler [NC] Relay Coupler [Brawler] Relay Coupler [Sentry] Tesla Rifle KE Penetrator Advanced EMP Blaster Advanced Remote Datajack Advanced Remote Datajack [Rating: 149] Favorites ----------- Power Cooled Deuterium Engine Engine Cooled Deuterium Engine Power Core Light Nuclear Core Reactor Particle Reactor Propulsion Advanced Treads Treads Advanced Treads Wheel Centrium Wheel Flight Unit Diametric Drive Utility High-capacity Storage Unit Device Cooling System Storage High-capacity Storage Unit Processor Advanced Targeting Computer Hackware Relay Coupler [NC] Protection Light Armor Plating Weapon Improved Light Cannon Energy Gun Tesla Rifle Energy Cannon Heavy Ion Cannon Ballistic Gun Autogun Ballistic Cannon Improved Light Cannon Launcher Advanced EMP Blaster Special Weapon Remote Datajack Build | -11 -10 -10 -10 -9 -8 -8 -8 -7 -7 -7 -6 -6 -6 -6 -5 -5 -5 -4 -3 -2 ------- Run | Jun Mat Min Exi Min Mat Sto Gar Fac Gar Fac Fac Low Low Dat Pro Fac Gar Fac Res Res Slots Evolved 16 | . . . . . 4 . . 2 . . 2 . . . . 2 . 2 2 2 Power 1 | . . . . . . . . . . . . . . . . . . 1 . . Propulsion 2 | . . . . . . . . . . . 2 . . . . . . . . . Utility 11 | . . . . . 3 . . 2 . . . . . . . 2 . 1 2 1 Weapon 2 | . . . . . 1 . . . . . . . . . . . . . . 1 Parts Attached 258 | 6 12 3 1 . 47 14 12 20 22 20 4 3 3 . 5 17 9 30 10 20 Power 18 | 1 1 1 . . 3 1 3 1 . 2 . . . . . 1 . 2 . 2 Engine 8 | 1 1 . . . 2 . . 1 . 2 . . . . . . . 1 . . Core 9 | . . 1 . . 1 1 3 . . . . . . . . 1 . 1 . 1 Reactor 1 | . . . . . . . . . . . . . . . . . . . . 1 Propulsion 39 | 2 . . . . 8 6 1 3 1 1 1 . 1 . . 1 2 4 3 5 Treads 37 | 2 . . . . 8 6 1 3 1 1 1 . 1 . . 1 2 4 3 3 Leg . | . . . . . . . . . . . . . . . . . . . . . Wheel 1 | . . . . . . . . . . . . . . . . . . . . 1 Hover . | . . . . . . . . . . . . . . . . . . . . . Flight 1 | . . . . . . . . . . . . . . . . . . . . 1 Utility 109 | 1 5 . 1 . 22 4 1 12 6 11 1 1 1 . 3 13 3 13 5 6 Device 47 | . 1 . . . 4 1 . 7 3 7 1 . 1 . 2 7 1 7 4 1 Storage 10 | 1 2 . 1 . 2 . . 1 1 . . . . . . . 1 1 . . Processor 5 | . . . . . . . . 1 . . . . . . . 2 . 1 . 1 Hackware 10 | . . . . . . . . . . 2 . 1 . . . 1 . 2 . 4 Protection 37 | . 2 . . . 16 3 1 3 2 2 . . . . 1 3 1 2 1 . Artifact . | . . . . . . . . . . . . . . . . . . . . . Weapon 92 | 2 6 2 . . 14 3 7 4 15 6 2 2 1 . 2 2 4 11 2 7 Energy Gun 10 | 1 2 . . . . . . 3 1 . . . . . . . . 1 . 2 Energy Cannon 33 | . . . . . 2 . 1 . 10 4 2 1 1 . 1 1 3 5 1 1 Ballistic Gun 8 | 1 2 2 . . . . . . . . . . . . . . . 1 . 2 Ballistic Cannon 22 | . 2 . . . 11 3 4 1 . . . . . . . . . 1 . . Launcher 10 | . . . . . 1 . 2 . 4 . . . . . 1 . 1 . . 1 Special Weapon 9 | . . . . . . . . . . 2 . 1 . . . 1 . 3 1 1 Impact Weapon . | . . . . . . . . . . . . . . . . . . . . . Slashing Weapon . | . . . . . . . . . . . . . . . . . . . . . Piercing Weapon . | . . . . . . . . . . . . . . . . . . . . . Special Melee Weapon . | . . . . . . . . . . . . . . . . . . . . . Unidentified Prototypes 1 | . . . . . . . . . . . . . . . . . . . . 1 Parts Lost 75 | . . . . . 6 6 . 13 1 . . . 2 . 2 1 2 23 . 19 Power 7 | . . . . . . 1 . 1 . . . . . . . . . 2 . 3 Propulsion 15 | . . . . . 1 . . 2 1 . . . 1 . . . 1 4 . 5 Utility 32 | . . . . . 4 2 . 6 . . . . . . 2 1 . 10 . 7 Weapon 21 | . . . . . 1 3 . 4 . . . . 1 . . . 1 7 . 4 Highest Loss Streak 11 | . . . . . 2 3 . 9 1 . . . 2 . 2 1 1 8 . 11 To Critical Strikes 5 | . . . . . . . . . . . . . . . . . . 2 . 3 Average Slot Usage (%) 91 | . 98 100 100 100 98 99 99 82 93 93 86 86 85 86 89 86 82 82 76 69 Engine 4 | . 14 3 . . 3 6 . 5 7 7 6 6 6 6 6 . . 3 . . Core 3 | . . 10 14 14 5 2 9 1 . . . . . . . 4 5 3 4 2 Treads 17 | . 28 28 28 28 17 18 18 15 15 15 20 20 20 20 20 15 11 14 10 7 Device 12 | . . . . . 10 14 18 19 18 14 13 6 12 13 16 14 17 16 17 18 Storage 8 | . 14 14 14 14 9 9 9 7 7 7 6 6 6 6 6 5 5 6 9 5 Processor 3 | . . . . . . . . 4 7 7 6 6 6 6 6 6 5 7 9 10 Hackware 2 | . . . . . . . . . . 7 6 12 6 6 6 5 5 5 7 7 Protection 13 | . 12 14 14 14 24 20 18 9 14 9 6 6 6 6 6 10 10 8 3 2 Energy Cannon 7 | . . . . . . . . . 20 18 20 19 19 20 20 16 15 8 1 2 Ballistic Gun 4 | . 13 22 28 28 1 . . . . . . . . . . . . . . 2 Ballistic Cannon 8 | . 12 5 . . 24 26 26 9 . . . . . . . . . 1 . . Naked Turns . | . . . . . . . . . . . . . . . . . . . . . Heaviest Build 129 | 13 36 36 54 54 88 77 73 88 105 98 98 98 98 98 98 105 105 129 95 116 Greatest Support 150 | 40 40 40 40 40 40 45 44 44 45 45 120 120 126 126 126 145 145 130 150 150 Greatest Overweight (x) 4 | . . . 1 1 2 1 1 1 2 4 . . . . . 1 . 1 1 3 Average Overweight (x) . | . . . . 1 1 1 1 1 1 1 . . . . . . . . . . Largest Inventory Capacity 35 | 8 15 15 20 20 35 20 20 20 20 20 20 20 20 20 20 20 20 20 20 20 Average Capacity 19 | 7 12 15 19 20 20 20 20 20 20 20 20 20 20 20 20 20 20 20 20 15 Most Carried 20 | 6 15 15 20 20 20 20 20 20 20 20 17 20 20 20 20 20 20 20 20 20 Average Carried 17 | 3 12 15 17 19 19 19 19 18 19 18 15 17 18 20 18 19 19 15 14 14 Final Capacity 20 | 8 15 15 20 20 20 20 20 20 20 20 20 20 20 20 20 20 20 20 20 5 Final Carried 20 | 6 15 15 20 20 19 18 20 20 20 16 17 20 20 20 18 20 18 10 20 5 Class Distribution -------------------- 32% | Mutant 20% | Tank 15% | Scavenger-Tank 7% | Gunner 6% | Commander-Tank 6% | Bothacker-Mutant 5% | Skirmisher 4% | Scavenger-Mutant Dominant Class ---------------- Mutant | -10/Materials Mutant | -10/Mines Mutant | -10/Exiles Mutant | -9/Mines Tank | -8/Materials Tank | -8/Storage Commander-Tank | -8/Garrison Mutant | -7/Factory Tank | -7/Garrison Bothacker-Mutant | -7/Factory Skirmisher | -6/Factory Gunner | -6/Lower Caves Gunner | -6/Lower Caves Gunner | -6/Data Miner Gunner | -5/Proximity Caves Scavenger-Tank | -5/Factory Scavenger-Tank | -5/Garrison Scavenger-Tank | -4/Factory Mutant | -3/Research Mutant | -2/Research Resources | -11 -10 -10 -10 -9 -8 -8 -8 -7 -7 -7 -6 -6 -6 -6 -5 -5 -5 -4 -3 -2 ----------- Run | Jun Mat Min Exi Min Mat Sto Gar Fac Gar Fac Fac Low Low Dat Pro Fac Gar Fac Res Res Matter Collected 6391 | 184 708 140 10 144 1382 728 265 638 400 415 47 40 20 . 45 176 157 569 26 297 Remotely 1455 | . . . . . . 428 256 493 . 10 . . . . . . . . 26 242 Salvage Created 11136 | . 525 172 . 181 1785 716 119 436 1346 661 599 176 357 . 112 1216 843 1461 . 431 Parts 467 | . 35 8 . 8 97 33 8 17 49 25 8 4 15 . 8 39 37 56 . 20 Haulers Intercepted 13 | . 2 . . . 6 4 . . . 1 . . . . . . . . . . Recyclers Shooed 7 | . 1 . . 1 . 1 . . . . . . . . . . . 1 . 3 Parts Field Recycled . | . . . . . . . . . . . . . . . . . . . . . Retrieved Matter . | . . . . . . . . . . . . . . . . . . . . . Parts Self-Destructed 22 | . . . . . . . . . . . . 6 14 . 2 . . . . . Prevented 2 | . . . . . . . . . . . . . . . 2 . . . . . Kills | -11 -10 -10 -10 -9 -8 -8 -8 -7 -7 -7 -6 -6 -6 -6 -5 -5 -5 -4 -3 -2 ------- Run | Jun Mat Min Exi Min Mat Sto Gar Fac Gar Fac Fac Low Low Dat Pro Fac Gar Fac Res Res Combat Hostiles Destroyed 207 | . 13 4 . 4 41 17 3 14 18 7 10 3 7 . 5 18 17 21 . 5 Guns 25 | . 10 2 . 4 1 . . 2 2 . . . . . . . . 1 . 3 Cannons 137 | . 3 2 . . 26 17 2 12 10 6 8 3 6 . . 16 7 17 . 2 AOE 33 | . . . . . 13 . 1 . 6 . . . . . 5 . 7 1 . . Classes Destroyed 17 | . 5 . . 1 10 . . 1 . . . . . . . . . . . . Worker 5 | . . . . . 2 . . . . . . . . . . . . 2 . 1 Builder 5 | . . . . . 3 . . . . 1 . . . . . . . . . 1 Hauler 13 | . 2 . . . 6 4 . . . 1 . . . . . . . . . . Recycler 9 | . 2 . . . . 1 . . . 3 . . . . . 1 . 2 . . Mechanic 3 | . . . . . 3 . . . . . . . . . . . . . . . Operator 3 | . . . . . 1 . . . . . . . . . . . . 2 . . Watcher 1 | . 1 . . . . . . . . . . . . . . . . . . . Swarmer 29 | . 6 . . . 3 3 1 . 3 . . . 1 . 5 . 7 . . . Grunt 102 | . 7 4 . 3 22 7 2 3 10 4 8 2 4 . . 10 9 5 . 2 Brawler 6 | . . . . 1 2 . . 1 1 . . . . . . 1 . . . . Duelist 7 | . . . . . 1 . 1 . . . 2 . 1 . . 1 . 1 . . Protector 1 | . . . . . 1 . . . . . . . . . . . . . . . Sentry 27 | . . . . . 8 7 . 5 2 . . 1 1 . . 1 1 . . 1 Specialist 2 | . . . . . 2 . . . . . . . . . . . . . . . Hunter 6 | . . . . . 1 . . . . . . . . . . 1 . 4 . . Programmer 27 | . . . . . . . . 5 2 3 . . . . . 4 . 11 . 2 Heavy 1 | . . . . . 1 . . . . . . . . . . . . . . . Best Kill Streak 17 | . 4 2 . 2 17 6 1 4 4 2 6 2 4 . 5 5 10 3 . 4 Combat Bots Only 14 | . 3 2 . 2 14 6 1 4 4 2 6 2 4 . 5 5 10 3 . 3 Max Kills in Single Turn 5 | . 1 1 . 1 4 2 1 1 2 2 2 1 2 . 5 1 2 1 . 2 Gunslinging . | . . . . . . . . . . . . . . . . . . . . . Exploded 5 | . . . . . 3 . 1 . 2 . . . . . 5 . 2 1 . . Melee . | . . . . . . . . . . . . . . . . . . . . . Uniques/NPCs Destroyed . | . . . . . . . . . . . . . . . . . . . . . Combat | -11 -10 -10 -10 -9 -8 -8 -8 -7 -7 -7 -6 -6 -6 -6 -5 -5 -5 -4 -3 -2 -------- Run | Jun Mat Min Exi Min Mat Sto Gar Fac Gar Fac Fac Low Low Dat Pro Fac Gar Fac Res Res Damage Taken 20789 | . 397 132 . 80 2121 1026 117 2128 682 477 741 226 359 . 74 1003 867 4015 55 6289 Core 2668 | . 35 36 . 24 125 88 . 178 41 96 36 . 20 . . 89 59 377 . 1464 Absorbed by Shields 262 | . . . . . . 9 5 168 80 . . . . . . . . . . . Reduced by Siege Mode 283 | . . . . . . . . . . . . . . . . . . . . 283 Regen/Repaired (Parts) 472 | . . . . . 117 223 . . . 132 . . . . . . . . . . Core Remaining (%) 77 | 100 . . . 62 . . 61 . . 55 . . . . 93 . 85 67 100 . Volleys Fired 686 | . 56 9 . 18 95 54 12 70 48 68 31 10 12 . 1 39 42 93 8 20 Largest 4 | . 2 2 . 2 3 3 3 3 3 3 3 3 3 . 1 3 3 3 1 4 Hottest 278 | . 85 78 . 46 122 122 117 117 195 195 235 235 235 . 36 235 235 215 113 278 Shots Fired 1479 | . 107 18 . 36 227 144 21 140 93 113 87 26 31 . 1 115 74 192 8 46 Gun 203 | . 74 10 . 36 6 . . 35 9 . . . . . . . . 7 . 26 Cannon 1206 | . 33 8 . . 219 144 19 105 68 92 87 24 31 . . 115 61 179 3 18 Launcher 36 | . . . . . 2 . 2 . 16 . . . . . 1 . 13 . . 2 Special 34 | . . . . . . . . . . 21 . 2 . . . . . 6 5 . Kinetic 687 | . 91 18 . 36 216 144 18 105 9 . . . . . . . . 41 . 9 Thermal 698 | . 16 . . . 9 . 1 31 59 92 87 24 31 . . 115 61 142 3 27 Explosive 8 | . . . . . 2 . 2 . 4 . . . . . . . . . . . Electromagnetic 52 | . . . . . . . . 4 21 . . . . . 1 . 13 3 . 10 Robot Hit Streak 25 | . 11 7 . 6 12 10 4 13 19 15 21 16 13 . 5 16 18 25 6 22 Robot Miss Streak 8 | . 4 1 . 4 8 5 1 2 5 2 4 1 1 . . 2 2 3 . 2 Penetration Max 1 | . . . . . . . . . . . . . . . . . . . . 1 Secondary Targets 1 | . . . . 1 . . . . . . . . . . . . . . . . Max Gunslinging Chain 1 | . . . . 1 . . . . . . . . . . . . . . . . Shots Hit Robots 943 | . 70 12 . 20 136 85 7 104 60 57 55 20 24 . 1 75 42 143 5 27 Core Hits 424 | . 27 6 . 6 72 32 6 34 45 14 19 6 11 . 6 38 33 51 . 18 Critical Kills 15 | . . . . 1 2 . . . . 2 2 . 1 . . 2 2 2 . 1 Critical Parts Destroyed . | . . . . . . . . . . . . . . . . . . . . . Critical Strikes 32 | . 1 . . 1 8 6 . 1 . 2 2 . 1 . . 2 2 5 . 1 Burn 1 | . 1 . . . . . . . . . . . . . . . . . . . Meltdown 13 | . . . . . 2 . . . . 2 2 . 1 . . 2 2 2 . . Destroy 2 | . . . . 1 . . . . . . . . . . . . . . . 1 Blast 16 | . . . . . 6 6 . 1 . . . . . . . . . 3 . . Melee Attacks . | . . . . . . . . . . . . . . . . . . . . . Impact . | . . . . . . . . . . . . . . . . . . . . . Slashing . | . . . . . . . . . . . . . . . . . . . . . Piercing . | . . . . . . . . . . . . . . . . . . . . . Sneak Attacks . | . . . . . . . . . . . . . . . . . . . . . Combat Hostiles . | . . . . . . . . . . . . . . . . . . . . . Follow-up Attacks . | . . . . . . . . . . . . . . . . . . . . . Damage Inflicted 29657 | . 1030 207 . 318 5246 1777 264 2231 2812 1104 1754 561 757 . 170 2535 1988 5281 54 1568 Guns 2506 | . 574 121 . 318 82 . . 490 91 . . . . . . . . 152 . 678 Cannons 22166 | . 456 86 . . 3709 1775 187 1741 1180 1093 1750 561 757 . . 2521 1099 4751 . 500 Explosions 4851 | . . . . . 1455 . 77 . 1541 . . . . . 170 . 860 378 . 370 Melee . | . . . . . . . . . . . . . . . . . . . . . Ramming 134 | . . . . . . 2 . . . 11 4 . . . . 14 29 . 54 20 Kinetic 9532 | . 873 207 . 318 2768 1775 187 1741 136 . . . . . . . . 1282 . 245 Thermal 16755 | . 157 . . . 2346 . . 458 1085 1093 1750 561 757 . 94 2521 1115 3903 . 915 Explosive 722 | . . . . . 132 . 77 . 513 . . . . . . . . . . . Electromagnetic 2514 | . . . . . . . . 32 1078 . . . . . 76 . 844 96 . 388 Impact . | . . . . . . . . . . . . . . . . . . . . . Slashing . | . . . . . . . . . . . . . . . . . . . . . Piercing . | . . . . . . . . . . . . . . . . . . . . . Highest Corruption 16 | . . . . . . 3 3 5 10 11 . . . . . 4 4 10 . 16 Average Corruption 5 | . . . . . . 2 3 2 8 9 . . . . . 3 4 5 . 5 Corruption Purged 5 | . . . . . . . . . . 5 . . . . . . . . . . Corruption Blocked . | . . . . . . . . . . . . . . . . . . . . . Effects 254 | . . . . . . 2 24 23 50 82 . . . . . 11 19 37 . 6 Message Errors 63 | . . . . . . . 4 5 16 18 . . . . . 3 6 9 . 2 Matter Fused 53 | . . . . . . 1 7 7 9 13 . . . . . 2 3 10 . 1 Heat Flow Errors 24 | . . . . . . . 2 4 2 9 . . . . . 2 1 3 . 1 Energy Discharges 35 | . . . . . . . 2 4 7 9 . . . . . . 5 6 . 2 Parts Rejected 2 | . . . . . . . . . . 1 . . . . . . . 1 . . Parts Fused 4 | . . . . . . . . 1 . 2 . . . . . 1 . . . . Data Loss (minor) 30 | . . . . . . 1 2 1 5 15 . . . . . 1 2 3 . . Data Loss (major) 17 | . . . . . . . 3 . 2 8 . . . . . 2 . 2 . . Misfires 13 | . . . . . . . 2 . 4 5 . . . . . . 1 1 . . Alerts 7 | . . . . . . . 1 1 3 1 . . . . . . 1 . . . Weapon Failures 6 | . . . . . . . 1 . 2 1 . . . . . . . 2 . . Overload Shots . | . . . . . . . . . . . . . . . . . . . . . Overflow Damage 894 | . 15 . . . 386 25 . 7 86 51 25 . . . . 6 1 246 3 43 Projectiles 764 | . 15 . . . 326 25 . 7 41 51 25 . . . . 6 . 241 . 27 Explosions 127 | . . . . . 60 . . . 45 . . . . . . . 1 5 . 16 Melee 3 | . . . . . . . . . . . . . . . . . . . 3 . Knockbacks 73 | . 6 . . . 23 16 1 11 1 . . . . . . . . 15 . . Impact . | . . . . . . . . . . . . . . . . . . . . . Kinetic 67 | . 6 . . . 19 16 1 11 1 . . . . . . . . 13 . . Secondary 6 | . . . . . 4 . . . . . . . . . . . . 2 . . Self-Inflicted Damage 285 | . . . . . . . . . 50 . . . . . . . 87 51 . 97 Shots 8 | . . . . . . . . . 1 . . . . . . . 3 1 . 3 Rammed 17 | . . . . . . 1 . . . 3 1 . . . . 3 . . 3 6 Targets Rammed 17 | . . . . . . 1 . . . 3 1 . . . . 3 . . 3 6 Kicked . | . . . . . . . . . . . . . . . . . . . . . Crushed . | . . . . . . . . . . . . . . . . . . . . . Highest Temperature 395 | . 165 132 . 74 306 63 185 255 151 339 326 395 219 . . 233 63 185 . 106 Average Temperature 59 | . 49 61 . 28 48 13 49 59 51 123 119 139 78 . . 65 18 28 . 61 Received Heat Transfer 4235 | . 147 69 . 45 801 336 6 472 249 225 339 42 135 . . 234 285 328 9 513 Effects 2 | . . . . . 1 . . . . 1 . . . . . . . . . . Energy Bleed 1 | . . . . . 1 . . . . . . . . . . . . . . . Short Circuit 1 | . . . . . . . . . . 1 . . . . . . . . . . Siege Activations 1 | . . . . . . . . . . . . . . . . . . . . 1 Total Turns 16 | . . . . . . . . . . . . . . . . . . . . 16 Longest Duration 16 | . . . . . . . . . . . . . . . . . . . . 16 Robots Corrupted 4 | . . . . . . . . . 3 . . . . . . . 1 . . . Combat Hostiles 1 | . . . . . . . . . . . . . . . . . 1 . . . Parts Fried 14 | . . . . . . . . . 9 . . . . . . . 5 . . . Impact Corruptions 1 | . . . . . . . . . . . . . . . . . . . 1 . Robots Melted 13 | . . . . . 2 . . . . 2 2 . 1 . . 2 2 2 . . Combat Hostiles 11 | . . . . . 1 . . . . 1 2 . 1 . . 2 2 2 . . Parts Melted 47 | . . . . . 4 . . 1 . 1 7 2 3 . . 15 2 10 . 2 Heat Transferred 19881 | . 518 . . . 1941 . . 888 1298 1443 2220 703 925 . 100 3145 1417 4482 . 801 Parts Sabotaged . | . . . . . . . . . . . . . . . . . . . . . Parts Stolen . | . . . . . . . . . . . . . . . . . . . . . Parts Stripped . | . . . . . . . . . . . . . . . . . . . . . Power Chain Reactions 3 | . . . . . . . . . 1 . . . . . 1 . 1 . . . Missiles Intercepted . | . . . . . . . . . . . . . . . . . . . . . Alert | -11 -10 -10 -10 -9 -8 -8 -8 -7 -7 -7 -6 -6 -6 -6 -5 -5 -5 -4 -3 -2 ------- Run | Jun Mat Min Exi Min Mat Sto Gar Fac Gar Fac Fac Low Low Dat Pro Fac Gar Fac Res Res Peak Influence 1604 | . 274 107 . 50 889 612 1604 1069 1341 781 230 . . . . 542 1112 683 202 347 Initial 842 | . . 7 . . 19 369 300 842 558 703 86 . . . . . 338 583 153 4 Average 405 | . 51 31 . 22 261 412 1014 867 952 320 90 . . . . 157 591 392 112 68 Maximum Alert Level 5 | . 1 . . . 3 2 5 3 4 3 1 . . . . 2 4 2 1 1 Low Security (%) 40 | 100 93 100 . 100 52 . . . . 50 94 . . . . 65 . 6 86 85 Level 1 14 | . 6 . . . 14 44 2 . . 14 5 . . . . 12 14 52 13 14 Level 2 21 | . . . . . 23 55 27 . 24 17 . . . . . 21 68 41 . . Level 3 17 | . . . . . 9 . 29 100 48 17 . . . . . . 14 . . . Level 4 3 | . . . . . . . 24 . 26 . . . . . . . 3 . . . Level 5 1 | . . . . . . . 16 . . . . . . . . . . . . . High Security . | . . . . . . . . . . . . . . . . . . . . . Max Security . | . . . . . . . . . . . . . . . . . . . . . Squads Dispatched 54 | . 2 . . . 10 . . 14 . 4 1 . . . . 5 . 9 1 8 Investigation 10 | . 1 . . . 5 . . 1 . . . . . . . . . 1 . 2 Extermination 16 | . . . . . . . . 5 . 3 . . . . . 2 . 5 . 1 Reinforcement 13 | . 1 . . . 1 . . . . 1 1 . . . . 2 . 3 1 3 Assault 7 | . . . . . 4 . . 1 . . . . . . . 1 . . . 1 Garrison 8 | . . . . . . . . 7 . . . . . . . . . . . 1 Intercept . | . . . . . . . . . . . . . . . . . . . . . Searches Triggered . | . . . . . . . . . . . . . . . . . . . . . Data Miner Redirects 3 | . . . . . . . . . . . . . . . . . . 1 . 2 Construction Impeded 3 | . . . . . . . . . . . 1 . . . . . . 1 . 1 Haulers Reinforced 1 | . . . . . . . . . . . . . . . . . . . 1 . Active Scanning Responses . | . . . . . . . . . . . . . . . . . . . . . Cargo Convoy Interrupts . | . . . . . . . . . . . . . . . . . . . . . Stealth | -11 -10 -10 -10 -9 -8 -8 -8 -7 -7 -7 -6 -6 -6 -6 -5 -5 -5 -4 -3 -2 --------- Run | Jun Mat Min Exi Min Mat Sto Gar Fac Gar Fac Fac Low Low Dat Pro Fac Gar Fac Res Res Distress Signals 14 | . . . . . 5 2 . . . . 3 . . . . . . 1 1 2 Communications Jammed . | . . . . . . . . . . . . . . . . . . . . . Distress Signals . | . . . . . . . . . . . . . . . . . . . . . Times Spotted 365 | . 19 4 . 4 71 25 19 17 18 15 16 5 7 . 5 26 26 33 4 51 Peak Tracking Total 27 | . 3 2 . 2 10 6 3 4 4 4 8 3 4 . 5 6 9 6 4 27 Tactical Retreats 23 | . . . . . 2 2 . . . 1 1 1 . . . . 4 4 . 8 Traps | -11 -10 -10 -10 -9 -8 -8 -8 -7 -7 -7 -6 -6 -6 -6 -5 -5 -5 -4 -3 -2 ------- Run | Jun Mat Min Exi Min Mat Sto Gar Fac Gar Fac Fac Low Low Dat Pro Fac Gar Fac Res Res Traps Triggered 29 | . . . . . 4 4 5 2 9 . . . . . . 1 4 . . . Indirectly 10 | . . . . . . . . . 6 . . . . . . . 4 . . . Trap Hack Attempts . | . . . . . . . . . . . . . . . . . . . . . Triggered . | . . . . . . . . . . . . . . . . . . . . . Disarmed . | . . . . . . . . . . . . . . . . . . . . . Reprogrammed . | . . . . . . . . . . . . . . . . . . . . . Reused 2 | . . . . . . . . . . . . . . . . . . 2 . . Traps Extracted . | . . . . . . . . . . . . . . . . . . . . . Installed 15 | . . . . . . . 12 . . . . 1 . . . . . 2 . . Triggered 4 | . . . . . . . . . . . . . . . . . 2 2 . . Most Traps Carried 2 | . . . . . . . . . . . . 1 1 1 2 2 2 2 . . Machines | -11 -10 -10 -10 -9 -8 -8 -8 -7 -7 -7 -6 -6 -6 -6 -5 -5 -5 -4 -3 -2 ---------- Run | Jun Mat Min Exi Min Mat Sto Gar Fac Gar Fac Fac Low Low Dat Pro Fac Gar Fac Res Res Machines Disabled 43 | . 1 . . . 6 4 9 4 4 3 2 . . . . 3 3 2 1 1 Max in Single Turn 2 | . 1 . . . 1 1 2 1 1 2 1 . . . . 1 1 2 . 1 Garrison Access 3 | . . . . . . . . . . . . . . . . 1 . . . 2 Garrison Relay 6 | . . . . . . . 2 . 2 . . . . . . . 2 . . . Machines Repaired . | . . . . . . . . . . . . . . . . . . . . . Machines Sabotaged . | . . . . . . . . . . . . . . . . . . . . . Overloaded Fab Kills . | . . . . . . . . . . . . . . . . . . . . . Hacking | -11 -10 -10 -10 -9 -8 -8 -8 -7 -7 -7 -6 -6 -6 -6 -5 -5 -5 -4 -3 -2 --------- Run | Jun Mat Min Exi Min Mat Sto Gar Fac Gar Fac Fac Low Low Dat Pro Fac Gar Fac Res Res Machines Accessed 81 | . 9 . 5 . 14 8 3 8 2 5 3 . . 2 . 5 1 6 2 8 Terminals 42 | . 7 . . . 9 6 3 3 2 1 2 . . . . 2 1 2 2 2 Fabricators 5 | . . . . . . . . 1 . 1 . . . . . 1 . 1 . 1 Repair Stations 8 | . 1 . . . 1 1 . 1 . 1 1 . . . . . . 2 . . Recycling Units 9 | . 1 . . . 2 . . 2 . 2 . . . . . . . 1 . 1 Scanalyzers 4 | . . . . . 2 . . . . . . . . . . . . . . 2 Garrison Access 6 | . . . . . . 1 . 1 . . . . . . . 2 . . . 2 Total Hacks 241 | . 28 . 50 . 41 21 7 18 5 7 5 . . 18 . 8 2 9 4 18 Successful 142 | . 17 . 50 . 19 9 1 8 . 3 1 . . 18 . 4 1 3 1 7 Failed 99 | . 11 . . . 22 12 6 10 5 4 4 . . . . 4 1 6 3 11 Catastrophic 22 | . . . . . 3 1 3 1 2 1 1 . . . . 1 . 4 1 4 Database Lockouts . | . . . . . . . . . . . . . . . . . . . . . Manual 86 | . 20 . 1 . 25 11 . 8 . 5 1 . . . . 5 . 3 2 5 Terminals 107 | . 26 . . . 24 16 7 6 5 1 4 . . . . 3 2 4 4 5 Fabricators 9 | . . . . . . . . 2 . 1 . . . . . 3 . 1 . 2 Repair Stations 16 | . 1 . . . 3 4 . 2 . 2 1 . . . . . . 3 . . Recycling Units 19 | . 1 . . . 7 . . 6 . 3 . . . . . . . 1 . 1 Scanalyzers 12 | . . . . . 7 . . . . . . . . . . . . . . 5 Garrison Access 10 | . . . . . . 1 . 2 . . . . . . . 2 . . . 5 Terminal Hacks 95 | . 10 . 50 . 6 4 1 1 . . 1 . . 18 . . 1 1 1 1 Record 49 | . . . 49 . . . . . . . . . . . . . . . . . Part Schematic 10 | . . . . . . . . . . . . . . 10 . . . . . . Robot Schematic 5 | . . . . . . . . . . . . . . 5 . . . . . . Robot Analysis 4 | . 1 . . . 2 . . . . . . . . . . . . 1 . . Prototype ID Bank 8 | . 4 . . . 1 . . . . . . . . 3 . . . . . . Open Door 1 | . . . . . . 1 . . . . . . . . . . . . . . Open DSF 2 | . . . . . . . . 1 . . . . . . . . . . . 1 Branch Access Points 2 | . . . . . . . . . . . 1 . . . . . . . 1 . Emergency Access Points 1 | . . . . . . . . . . . . . . . . . 1 . . . Alert Level 5 | . 1 . . . 2 2 . . . . . . . . . . . . . . Unreport Threat 2 | . 1 . . . . 1 . . . . . . . . . . . . . . Locate Traps 2 | . 2 . . . . . . . . . . . . . . . . . . . Hauler Manifests 1 | . 1 . . . . . . . . . . . . . . . . . . . Zone Layout 1 | . . . . . 1 . . . . . . . . . . . . . . . Garrison Registry 1 | . . . . . . . 1 . . . . . . . . . . . . . EX-Prototype ID Bank 1 | . . . 1 . . . . . . . . . . . . . . . . . Fabricator Hacks . | . . . . . . . . . . . . . . . . . . . . . Repair Station Hacks 8 | . . . . . 2 2 . 1 . 2 . . . . . . . 1 . . Scan Component 5 | . . . . . 1 1 . 1 . 1 . . . . . . . 1 . . Repair 3 | . . . . . 1 1 . . . 1 . . . . . . . . . . Recycling Unit Hacks . | . . . . . . . . . . . . . . . . . . . . . Scanalyzer 6 | . . . . . 4 . . . . . . . . . . . . . . 2 Insert Component 5 | . . . . . 3 . . . . . . . . . . . . . . 2 Analyze 1 | . . . . . 1 . . . . . . . . . . . . . . . Garrison Access Hacks 7 | . . . . . . 1 . 1 . . . . . . . 2 . . . 3 Unlock Access 4 | . . . . . . 1 . 1 . . . . . . . 2 . . . . Seal Access 1 | . . . . . . . . . . . . . . . . . . . . 1 Coupler Status 2 | . . . . . . . . . . . . . . . . . . . . 2 Unauthorized Hacks 26 | . 7 . . . 7 2 . 5 . 1 . . . . . 2 . 1 . 1 Terminals 14 | . 6 . . . 4 2 . . . . . . . . . 1 . 1 . . Track 1 | . 1 . . . . . . . . . . . . . . . . . . . Botnet 13 | . 5 . . . 4 2 . . . . . . . . . 1 . 1 . . Fabricators 2 | . . . . . . . . . . 1 . . . . . 1 . . . . Fabnet 2 | . . . . . . . . . . 1 . . . . . 1 . . . . Repair Stations . | . . . . . . . . . . . . . . . . . . . . . Recycling Units 9 | . 1 . . . 3 . . 5 . . . . . . . . . . . . Reject 3 | . . . . . 1 . . 2 . . . . . . . . . . . . Recyclers 2 | . . . . . 1 . . 1 . . . . . . . . . . . . Mask 3 | . . . . . 1 . . 2 . . . . . . . . . . . . Tunnel 1 | . 1 . . . . . . . . . . . . . . . . . . . Scanalyzers . | . . . . . . . . . . . . . . . . . . . . . Garrison Access 1 | . . . . . . . . . . . . . . . . . . . . 1 Eject 1 | . . . . . . . . . . . . . . . . . . . . 1 Data Cores Recovered 2 | . . . . . 1 . . . . . . . . . . . . 1 . . Used . | . . . . . . . . . . . . . . . . . . . . . Hacking Detections 65 | . 8 . . . 12 7 3 7 2 3 3 . . . . 4 1 6 2 7 Full Trace Events 9 | . 2 . . . 2 . 2 . 2 . . . . . . . . . . 1 Feedback Events 2 | . . . . . . . . . 2 . . . . . . . . . . . Corruption 2 | . . . . . . . . . 2 . . . . . . . . . . . Feedback Blocked . | . . . . . . . . . . . . . . . . . . . . . Robot Schematics Acquired 5 | . . . . . . . . . . . . . . 5 . . . . . . Robots Built . | . . . . . . . . . . . . . . . . . . . . . Authchips . | . . . . . . . . . . . . . . . . . . . . . Time . | . . . . . . . . . . . . . . . . . . . . . Total Robot Build Rating . | . . . . . . . . . . . . . . . . . . . . . Part Schematics Acquired 11 | . . . . . 1 . . . . . . . . 10 . . . . . . Parts Built . | . . . . . . . . . . . . . . . . . . . . . Authchips . | . . . . . . . . . . . . . . . . . . . . . Time . | . . . . . . . . . . . . . . . . . . . . . Total Part Build Rating . | . . . . . . . . . . . . . . . . . . . . . Parts Repaired 3 | . . . . . 1 1 . . . 1 . . . . . . . . . . Time 140 | . . . . . 16 38 . . . 86 . . . . . . . . . . Parts Recycled . | . . . . . . . . . . . . . . . . . . . . . Recycled Matter . | . . . . . . . . . . . . . . . . . . . . . Retrieved Matter . | . . . . . . . . . . . . . . . . . . . . . Retrieved Components . | . . . . . . . . . . . . . . . . . . . . . Parts Scanalyzed 2 | . . . . . 2 . . . . . . . . . . . . . . . Part Schematics Acquired 1 | . . . . . 1 . . . . . . . . . . . . . . . Parts Damaged . | . . . . . . . . . . . . . . . . . . . . . Bothacking | -11 -10 -10 -10 -9 -8 -8 -8 -7 -7 -7 -6 -6 -6 -6 -5 -5 -5 -4 -3 -2 ------------ Run | Jun Mat Min Exi Min Mat Sto Gar Fac Gar Fac Fac Low Low Dat Pro Fac Gar Fac Res Res Used RIF Installer 2 | . . . . . . . . . 1 . . . . . . . 1 . . . Alert ID Control 1 | . . . . . . . . . . . . . . . . . 1 . . . Robots Hacked 19 | . . . . . . . . . . 7 . 2 . . . 1 . 4 5 . Non-combat 10 | . . . . . . . . . . 5 . . . . . . . 2 3 . Combat 9 | . . . . . . . . . . 2 . 2 . . . 1 . 2 2 . Robot Hacks Applied 30 | . . . . . . . . . . 18 . 2 . . . . . 5 5 . parse_system 9 | . . . . . . . . . . 6 . . . . . . . 1 2 . no_distress 5 | . . . . . . . . . . 4 . . . . . . . 1 . . ignore_repairs 1 | . . . . . . . . . . 1 . . . . . . . . . . drop_inventory 2 | . . . . . . . . . . . . . . . . . . . 2 . find_recycling 1 | . . . . . . . . . . 1 . . . . . . . . . . ignore_parts 1 | . . . . . . . . . . 1 . . . . . . . . . . check_alert 1 | . . . . . . . . . . 1 . . . . . . . . . . purge_threat 4 | . . . . . . . . . . 2 . . . . . . . 2 . . overwrite_iff 1 | . . . . . . . . . . . . . . . . . . 1 . . formatsys_high 5 | . . . . . . . . . . 2 . 2 . . . . . . 1 . Relay Couplers Released 30 | . . . . . . . 9 . 11 . . . . . . . 6 . . 4 Ejected 4 | . . . . . . . . . . . . . . . . . . . . 4 Machine Destruction 23 | . . . . . . . 9 . 8 . . . . . . . 6 . . . Programmers 3 | . . . . . . . . . 3 . . . . . . . . . . . Attached 8 | . . . . . . . . . . 2 . 1 . . . . . 2 . 3 Fabnet Peak Effective % 3 | . . . . . . . . . . . 3 3 3 3 1 1 1 3 1 . Autooverrided 3 | . . . . . . . . . . . . . . . . 1 . 1 1 . Robots Rewired 4 | . . . . . . 1 3 . . . . . . . . . . . . . Allies Hacked 1 | . . . . . . . . . . . . . . . . . . . . 1 Hacks Repelled . | . . . . . . . . . . . . . . . . . . . . . Allies | -11 -10 -10 -10 -9 -8 -8 -8 -7 -7 -7 -6 -6 -6 -6 -5 -5 -5 -4 -3 -2 -------- Run | Jun Mat Min Exi Min Mat Sto Gar Fac Gar Fac Fac Low Low Dat Pro Fac Gar Fac Res Res Total Allies 26 | . . . . . . 10 3 . . 5 . 2 . . 1 1 . 2 2 . Largest Group 13 | . . . . . . 10 13 8 . 4 4 2 . . 1 1 . 1 2 1 Highest-Rated Group 255 | . . . . . . 173 255 144 . 109 109 24 . . 96 96 . 49 111 55 Highest-Rated Ally 96 | . . . . . . 29 31 31 . 31 31 12 . . 96 96 . 49 64 55 Total Orders 16 | . . . . . . . 4 . . . . 1 . . . . . 1 6 4 STAY 2 | . . . . . . . 2 . . . . . . . . . . . . . ROAM 1 | . . . . . . . . . . . . 1 . . . . . . . . FOLLOW 2 | . . . . . . . 2 . . . . . . . . . . . . . EXPLORE 10 | . . . . . . . . . . . . . . . . . . 1 5 4 RETURN 1 | . . . . . . . . . . . . . . . . . . . 1 . Ally Attacks 206 | . . . . . . 20 102 17 . 8 20 10 . . . 18 . 5 6 . Total Damage 3563 | . . . . . . 254 1311 761 . 84 306 93 . . . 408 . 161 185 . Kills 37 | . . . . . . 2 21 8 . . 1 1 . . . 3 . . 1 . Allies Corrupted 2 | . . . . . . . . . . . . 1 . . . . . . . 1 Allies Melted . | . . . . . . . . . . . . . . . . . . . . . Intel | -11 -10 -10 -10 -9 -8 -8 -8 -7 -7 -7 -6 -6 -6 -6 -5 -5 -5 -4 -3 -2 ------- Run | Jun Mat Min Exi Min Mat Sto Gar Fac Gar Fac Fac Low Low Dat Pro Fac Gar Fac Res Res Robot Analysis Total 4 | . 1 . . . 2 . . . . . . . . . . . . 1 . . Derelict Logs Recovered 7 | . . 1 . 1 . . . . . . . 2 1 . 2 . . . . . Drone Launches 11 | . . . . . . . . . . . . . . . . . . 1 6 4 Drone Recoveries 8 | . . . . . . . . . . . . . . . . . . 1 5 2 Exploration | -11 -10 -10 -10 -9 -8 -8 -8 -7 -7 -7 -6 -6 -6 -6 -5 -5 -5 -4 -3 -2 ------------- Run | Jun Mat Min Exi Min Mat Sto Gar Fac Gar Fac Fac Low Low Dat Pro Fac Gar Fac Res Res Turns Passed 24246 | 84 1409 577 1137 923 4027 1431 1430 1664 1641 2313 688 498 611 117 440 1012 1110 1931 596 607 Spaces Moved 9866 | 46 705 337 503 356 1378 503 567 588 552 733 358 293 347 74 270 506 337 710 261 442 Core 269 | 3 . . . . . . . . . . . . . . . . . . . 266 Treads 9576 | 43 705 337 503 356 1378 503 567 588 552 733 358 293 347 74 270 506 337 710 261 155 Legs . | . . . . . . . . . . . . . . . . . . . . . Wheels . | . . . . . . . . . . . . . . . . . . . . . Hover . | . . . . . . . . . . . . . . . . . . . . . Flight 21 | . . . . . . . . . . . . . . . . . . . . 21 Fastest Speed 30 | 50 160 160 160 240 240 225 225 225 225 232 155 155 155 160 160 160 150 150 153 30 Average Speed 202 | 152 160 160 225 240 243 233 225 225 261 284 155 155 159 160 160 160 157 178 191 97 Slowest Speed 480 | 160 160 160 240 240 325 245 225 225 305 480 155 155 160 160 160 240 160 237 270 200 Overloaded Moves . | . . . . . . . . . . . . . . . . . . . . . Propulsion Burnouts . | . . . . . . . . . . . . . . . . . . . . . Robots Hopped 3 | . . . . . . . . . . . . . . . . . . . . 3 Cave-ins Triggered . | . . . . . . . . . . . . . . . . . . . . . Exploration Rate (%) 48 | 5 97 70 92 85 83 74 61 19 69 17 10 47 57 68 51 17 42 15 17 19 Regions Visited 20 Branch Regions 8 Pre-discovered Areas 3 | . 1 . 1 . . . . . . . . 1 . . . . . . . . Known Exits Taken 8 | . . . . . 1 1 . 1 . . 1 . . . 1 1 . 1 1 . Unknown Exits Taken 9 | 1 1 1 1 1 . . . . . 1 . 1 1 1 . . . . . . Scrap Searched 9 | . . 1 . 2 . . . . . . . 3 3 . . . . . . . Spaces Dug 41 | . 2 . . . 5 . 13 . . 7 3 . . . . . . 1 3 7 Terrain Destroyed 269 | . 2 . . . 89 8 13 . 28 42 19 2 3 . 2 16 . 29 3 13 Melee . | . . . . . . . . . . . . . . . . . . . . . Projectile 107 | . 2 . . . 13 8 1 . . 13 19 2 3 . . 16 . 17 3 10 AOE 162 | . . . . . 76 . 12 . 28 29 . . . . 2 . . 12 . 3 Terrain Rammed 1 | . . . . . . . . . . . . . . . . . 1 . . . Walls Destroyed 1 | . . . . . . . . . . . . . . . . . 1 . . . Machines Disabled . | . . . . . . . . . . . . . . . . . . . . . Actions | -11 -10 -10 -10 -9 -8 -8 -8 -7 -7 -7 -6 -6 -6 -6 -5 -5 -5 -4 -3 -2 --------- Run | Jun Mat Min Exi Min Mat Sto Gar Fac Gar Fac Fac Low Low Dat Pro Fac Gar Fac Res Res Total 12884 | 57 894 361 507 399 1881 652 705 799 673 871 424 316 379 73 276 620 851 1208 354 584 Wait 1597 | . 75 8 . 18 272 53 11 98 16 29 30 7 14 . . 31 459 361 50 65 Move 9844 | 45 704 336 502 355 1377 503 565 588 551 732 357 292 346 73 269 506 336 709 260 438 Hop 1 | . . . . . . . . . . . . . . . . . . . . 1 Pick Up 162 | 6 22 2 3 4 34 10 6 12 10 3 . 3 3 . 1 10 2 6 12 13 Fast Attach 90 | 6 8 1 . . 12 2 1 9 10 11 1 . . . . 7 . 11 6 5 Attach 92 | . 1 . . . 19 7 3 8 3 2 1 . 3 . 3 5 4 16 3 14 Detach 48 | . 3 . . . 8 2 2 3 2 2 1 . 1 . . 6 . 5 5 8 Swap 76 | . 3 2 1 . 16 5 8 3 9 7 2 3 . . 2 5 5 3 1 1 Drop 168 | . 22 3 1 4 48 10 8 8 20 14 . . . . . 8 1 2 6 13 Fire 686 | . 56 9 . 18 95 54 12 70 48 68 31 10 12 . 1 39 42 93 8 20 Melee . | . . . . . . . . . . . . . . . . . . . . . Ram 6 | . . . . . . . . . . . . . . . . . 1 . . 5 Kick . | . . . . . . . . . . . . . . . . . . . . . Crush 12 | . . . . . . 1 . . . 3 1 . . . . 3 . . 3 1 Escape Stasis 19 | . . . . . . 4 10 . 4 . . . . . . . 1 . . . Rewire 68 | . . . . . . 1 67 . . . . . . . . . . . . . Trap 15 | . . . . . . . 12 . . . . 1 . . . . . 2 . . Miscellaneous . | . . . . . . . . . . . . . . . . . . . . . Route ------- -11/Junkyard -10/Materials (discovered 5 exits: *Mat x3 / [*Min x2]) -10/Mines (discovered 3 exits: *Mat x2 / *Exi) -10/Exiles (discovered 2 exits: [*Min x2]) -9/Mines -8/Materials (discovered 4 exits: *Fac x2 / *Sto x2) -8/Storage -8/Garrison (discovered 3 exits: *Fac x3) -7/Factory -7/Garrison (discovered 3 exits: *Fac x3) -7/Factory -6/Factory (discovered 5 exits: *Fac / *Low x2 / Ext x2) -6/Lower Caves -6/Lower Caves (discovered 2 exits: *Fac / *Dat) -6/Data Miner -5/Proximity Caves -5/Factory -5/Garrison -4/Factory -3/Research (discovered 3 exits: *Res / Qua x2) -2/Research History --------- Turn | Location | Event 37 | -11/Junkyard | Discovered new exit (range 14) 85 | -11/Junkyard | Entered Materials 311 | -10/Materials | Build established: Mutant 440 | -10/Materials | Discovered new exit (range 16) 629 | -10/Materials | Discovered new exit (range 10) 804 | -10/Materials | Discovered new exit (range 12) 1167 | -10/Materials | Discovered new exit (range 16) 1351 | -10/Materials | Discovered new exit (range 6) 1494 | -10/Materials | Entered Mines 1506 | -10/Mines | Met a Derelict bent on vengeance 1770 | -10/Mines | Identified exit to Materials 1969 | -10/Mines | Discovered exit to Materials (range 8) 2063 | -10/Mines | Deemed a non-threat by the Exiles lab entrance 2065 | -10/Mines | Discovered new exit (range 5) 2071 | -10/Mines | Entered Exiles 2094 | -10/Exiles | Discovered new exit (range 15) 2139 | -10/Exiles | Met 8R-AWN 2163 | -10/Exiles | Met EX-HEX 2282 | -10/Exiles | Met EX-DEC 2326 | -10/Exiles | Visited The Gauntlet 2608 | -10/Exiles | Learned location of Zion (-7) 2821 | -10/Exiles | Met EX-BIN 2861 | -10/Exiles | Aligned with FarCom system 2864 | -10/Exiles | Given EX-Vault access code 2957 | -10/Exiles | Opened EX-Vault 2979 | -10/Exiles | Found YOLO Cannon 3030 | -10/Exiles | Warned to stay clear of 0b10 Research branches 3189 | -10/Exiles | Discovered new exit (range 10) 3208 | -10/Exiles | Left Exiles lab with YOLO Cannon 3208 | -10/Exiles | Entered Mines 3232 | -9/Mines | Received a Rocket Launcher from a helpful Derelict 3466 | -9/Mines | Learned location of 1 exit from Materials 3504 | -9/Mines | Found a damaged Exp. Sensor Array with a note attached 4110 | -9/Mines | Discovered new exit (range 10) 4131 | -9/Mines | Entered Materials 4131 | -8/Materials | Evolved 4 slots: Utility x3, Weapon x1 4132 | -8/Materials | Identified exit to Storage 4770 | -8/Materials | Build established: Scavenger-Tank 5885 | -8/Materials | Discovered new exit (range 9) 6078 | -8/Materials | Discovered exit to Storage (range 11) 6377 | -8/Materials | Build established: Tank 7093 | -8/Materials | Discovered new exit (range 11) 7731 | -8/Materials | First assault squad dispatched 7818 | -8/Materials | Destroyed 14 combat bots 8063 | -8/Materials | Repaired Imp. Light Cannon 8158 | -8/Materials | Entered Storage 8531 | -8/Storage | Build established: Scavenger-Tank 8592 | -8/Storage | Lost 3 parts (2u1w) 8934 | -8/Storage | Build established: Tank 9423 | -8/Storage | Repaired Hrd. Medium Armor Plating? 9519 | -8/Storage | Assisted by bots powering up and referring to "LRC-V3" 9589 | -8/Storage | Identified exit to Garrison 9589 | -8/Storage | Entered Garrison 9589 | -8/Garrison | Accompanied by 10 allies 9821 | -8/Garrison | Build established: Commander-Tank 9852 | -8/Garrison | Triggered checkpoint 9932 | -8/Garrison | Garrison Relay disabled 10091 | -8/Garrison | Triggered checkpoint 10092 | -8/Garrison | Triggered checkpoint 10208 | -8/Garrison | Discovered new exit (range 10) 10434 | -8/Garrison | Triggered checkpoint 10455 | -8/Garrison | Discovered new exit (range 21) 10455 | -8/Garrison | Discovered new exit (range 29) 10455 | -8/Garrison | Discovered new exit (range 76) 10488 | -8/Garrison | Garrison Relay disabled 10624 | -8/Garrison | Triggered checkpoint 10814 | -8/Garrison | Attempted to access garrison exit controls, blocked by remote lockdown 11019 | -8/Garrison | Entered Factory 11019 | -7/Factory | Accompanied by 8 allies 11019 | -7/Factory | Evolved 2 slots: Utility x2 11339 | -7/Factory | Garrison activated, responded to threat 11406 | -7/Factory | Lost 9 parts (1p1n5u2w) 11658 | -7/Factory | Build established: Mutant 11819 | -7/Factory | First assault squad dispatched 12599 | -7/Factory | Garrison activated, responded to threat 12683 | -7/Factory | Identified exit to Garrison 12683 | -7/Factory | Entered Garrison 12695 | -7/Garrison | Triggered checkpoint 13089 | -7/Garrison | Garrison Relay disabled 13302 | -7/Garrison | Triggered checkpoint 13528 | -7/Garrison | Build established: Tank 13529 | -7/Garrison | Discovered new exit (range 10) 13750 | -7/Garrison | System corruption reached 10% 13807 | -7/Garrison | Discovered new exit (range 8) 13974 | -7/Garrison | Triggered checkpoint 14218 | -7/Garrison | Discovered new exit (range 11) 14282 | -7/Garrison | Installed Relay Interface Framework 14324 | -7/Garrison | Entered Factory 14384 | -7/Factory | Discovered new exit (range 15) 15092 | -7/Factory | Build established: Bothacker-Mutant 16034 | -7/Factory | Repaired Corrupted Imp. Heavy Treads? 16410 | -7/Factory | Build established: Skirmisher 16481 | -7/Factory | Allied Derelicts emerged from ambush trap array 16637 | -7/Factory | Entered another Factory area 16637 | -6/Factory | Accompanied by 4 allies 16637 | -6/Factory | Evolved 2 slots: Propulsion x2 16927 | -6/Factory | Discovered new exit (range 8) 17116 | -6/Factory | Identified exit to Lower Caves 17116 | -6/Factory | Identified exit to Extension 17325 | -6/Factory | Entered Lower Caves 17344 | -6/Lower Caves | Attracted the attention of an 0b10 checkpoint 17629 | -6/Lower Caves | Build established: Gunner 17704 | -6/Lower Caves | Discovered new exit (range 3) 17707 | -6/Lower Caves | Learned location of 1 exit from Proximity Caves 17823 | -6/Lower Caves | Entered another Lower Caves area 17953 | -6/Lower Caves | Discovered new exit (range 5) 18051 | -6/Lower Caves | Attracted the attention of an 0b10 checkpoint 18099 | -6/Lower Caves | Learned Factory stockpile data 18249 | -6/Lower Caves | Encountered a Warlord checkpoint 18386 | -6/Lower Caves | Discovered new exit (range 14) 18434 | -6/Lower Caves | Entered Data Miner 18434 | -6/Data Miner | Discovered new exit (range 6) 18465 | -6/Data Miner | Met Data Miner 18514 | -6/Data Miner | Received God Mode back door access code from Data Miner 18551 | -6/Data Miner | Entered Proximity Caves 18552 | -5/Proximity Caves | Identified exit to Factory 18563 | -5/Proximity Caves | Learned Factory stockpile data 18715 | -5/Proximity Caves | Learned Factory garrison access intel 18742 | -5/Proximity Caves | Escorted by Enhanced Grunt 18991 | -5/Proximity Caves | Entered Factory 18991 | -5/Factory | Accompanied by 1 ally 18991 | -5/Factory | Evolved 2 slots: Utility x2 18993 | -5/Factory | Loaded intel: 4 garrison access locations 19406 | -5/Factory | Found Prototype Device 19492 | -5/Factory | Local machine network offline 19734 | -5/Factory | Identified exit to Garrison 20003 | -5/Factory | Identified exit to Garrison 20003 | -5/Factory | Entered Garrison 20031 | -5/Garrison | Expanded RIF knowledge: Alert ID Control 20083 | -5/Garrison | Build established: Scavenger-Tank 20144 | -5/Garrison | Triggered checkpoint 20185 | -5/Garrison | Garrison Relay disabled 20633 | -5/Garrison | Triggered checkpoint 20919 | -5/Garrison | Build established: Scavenger-Mutant 20997 | -5/Garrison | Destroyed 10 combat bots 21034 | -5/Garrison | Garrison Relay disabled 21072 | -5/Garrison | Discovered new exit (range 11) 21113 | -5/Garrison | Entered Factory 21113 | -4/Factory | Evolved 2 slots: Power x1, Utility x1 21412 | -4/Factory | Build established: Scavenger-Tank 21965 | -4/Factory | Lost 6 parts (1p1n3u1w) 22008 | -4/Factory | Discovered new exit (range 5) 22017 | -4/Factory | Identified exit to Research 22257 | -4/Factory | Incoming investigation squad redirected 22413 | -4/Factory | Lost 3 parts (1u2w) 22458 | -4/Factory | Lost 3 parts (1p1n1u) 22692 | -4/Factory | System corruption reached 10% 22773 | -4/Factory | Lost 8 parts (2n3u3w) 23009 | -4/Factory | Build established: Mutant 23044 | -4/Factory | Entered Research 23044 | -3/Research | Evolved 2 slots: Utility x2 23317 | -3/Research | Identified exit to Quarantine 23503 | -3/Research | Discovered new exit (range 15) 23528 | -3/Research | Identified exit to Research 23640 | -3/Research | Entered another Research area 23640 | -2/Research | Accompanied by 1 ally 23640 | -2/Research | Evolved 2 slots: Utility x1, Weapon x1 24001 | -2/Research | Garrison activated, responded to threat 24022 | -2/Research | Incoming investigation squad redirected 24024 | -2/Research | Spotted B-90 Cyclops 24033 | -2/Research | Incoming assault squad redirected 24115 | -2/Research | Lost 11 parts (2p2n3u4w) 24198 | -2/Research | Core integrity fell below 50% 24198 | -2/Research | System corruption reached 10% 24228 | -2/Research | Lost 5 parts (1p2n2u) 24245 | -2/Research | Core integrity fell below 20% 24247 | -2/Research | Destroyed by G-73 Enforcer with Heavy Laser Last Messages --------------- 24210_ Slammed into T-07 Excavator. 24210_ Destabilizing: System corrupted (+2). 24214_ Slammed into T-07 Excavator. 24215_ 6PP HSWD H5XTBO #AX0 24215_ Slammed into K-01 Serf. 24222_ Connecting with DSF Access... 24222_ ALERT: Suspicious intruders detected, dispatching Cutter reinforcements to area. 24226_ Acquired Prototype Ballistic Gun. 24231_ System corrupted: Heat flow error (+148). 24234_ Acquired Hvy. Gauss Cannon. 24237_ Dropped Centrium Wheel. 24239_ Acquired Hacking Suite. 24241_ Diametric Drive destroyed. 24241_ Relay Coupler [Sentry] destroyed. 24243_ Dropped Prototype Ballistic Gun. 24244_ Acquired Force Lance. 24245_ P-80 Master resets S-43 Plague, system corruption cleaned. 24247_ System corrupted: Energy discharge (-20). 24247_ Imp. Targeting Computer destroyed. Map ----- +----------------------------------------------------+ | ?????????????????????# # """"""" ## ### | | ?????????????????????# # #???##?? | | ?????????????????????# # #??????? | | ?????????????????######+################?????? | | ?????????????????# #????? = ?????? | | ?????????????????# #????? ??????? | | ?????????????????# #????? ???#??? | | ?????????????????# """ """ #????? ?? #??? | | ?????????????????# """ """ #?????#/#?? #??? | | ?????????????????# """ """ ####### ### #??? | | ?????????????????# """ """ # ## #??? | | ?????????????????# """ """ !# ## #??? | | ?????????????????# """ """ # # #??? | | ?????????????????# # + +??? | | ?????????????????# # # ####??? | | ?????????????????# + ## #?????? | | ?????????????????############## ## #?????? | | ??????????????????????????????# ## ####### | | ??????????????????????????????# = ## | | ??????????????????????????????#######+######## | | ?????????????????????????????????# #????# | | ?????????????????????????????????# #????# | | ???????????? ????????????????????#! #????# | | ???????????# ??????????????????# ###### | | ??????????## ############????# = / | | ??????????# @ ###### = # | | ??????????# ## ##### | | ??????????# | | ??????????# | | ??????????# [ ]! | | ??????????# s s g /] ! ###### | | ??????????# s Agss]! !! #????# | | ??????????### #????+ | | ????????????# """ """ #????# | | ????????????# """T""" pp pg #????# | | ????????????# ##############+##g = #????# | | ????????????# ???# #????????#h ### #????# | | ???????????? ???# #????????#pg#?# #????# | | ?????????????????# ####?????#g ###+###### | | ??????????????H??# #?????# # + | | ?????????????????# #?????# # #### | | ?????????????????# ####### # # | | ?????????????????# / # | | ?????????????????# ########## # | | ?????????????????# #????????# # | | ?????????????#???# #????????######## | | ????????###### ??# #### #?########??????# ] | | ????????+ ??# #??# #?# #??????#### | | ???????????# ### ##?# #?# #????????# | | ???????????# T#?# #?# #????????# | +----------------------------------------------------+ Best States ------------- Heat Dissipation 119 Energy Generation 33 Energy Capacity 740 Matter Stores 300 Matter Capacity 450 Sight Range 16 Terrain Scan Density 10 Power Amplification 20 Base Temperature (-) 200 Armor Coverage 1050 Evasion (%) 50 Targeting Accuracy 19 Recoil Reduction 4 Force Boost 20 Offensive Hacking 10 Relay Coupler Types 3 Relay Coupler Value 75 Item Schematics ----------------- Adv. EMP Blaster | -8/Materials | Scanalyzed Combat Drone Bay | -6/Data Miner | Free Lgt. Regenerative Plating | -6/Data Miner | Free Exp. Heat Sink | -6/Data Miner | Free Enh. Armored Leg | -6/Data Miner | Free Hvy. Gatling Laser | -6/Data Miner | Free Adv. Medium Treads | -6/Data Miner | Free Adv. Coolant Injector | -6/Data Miner | Free Matter Neutralizer | -6/Data Miner | Free Adv. Cryofiber Web | -6/Data Miner | Free Antimatter Reactor | -6/Data Miner | Free Robot Schematics ------------------ A-15 Conveyor | -6/Data Miner | Free Y-54 Guardian | -6/Data Miner | Free B-60 Warrior | -6/Data Miner | Free R-10 Processor | -6/Data Miner | Free D-63 Destroyer | -6/Data Miner | Free Fabricated ------------ Nothing Alien Tech Used ----------------- None Achievements -------------- None Challenges ------------ None Game ------ Seed InsulationInsulationLoader Manual? 0 Play Time 04:18:52 Cumulative 297.9 hours Start 2023.03.04 @ 13:50:23 End 2023.03.04 @ 23:58:18 Sessions 5 Manual Loads 0 Difficulty Rogue Special Mode None Game No. 135 Rogue 134 Adventurer 0 Explorer 1 Win Type - Total 16 Types 12/0/4/0/0/0/0/0/0 Lore% 74 Gallery% 79 Achievement% 70 Wizard Run 0 Options --------- ASCII 1 Keyboard 1 Movement Numpad Keybinds 1 Fullscreen 2 Font 36/Terminus Map View 76x50 Tactical HUD 1 Map Filters NONE Filters NONE Steam 1 RUN: 8021cf7d-43e3-4f7c-beb4-2ac5506ed5ec